fUSD/lending_fUSD_20250716
["ID","MTS","AMOUNT","RATE_DAILY","PERIOD"]
[372508235,1752663220599,-485.08,0.00023972,2]
[372508236,1752663220609,-1356.39,0.00023972,2]
[372508237,1752663220618,-460.0,0.00023972,2]
[372508238,1752663220628,-4311.63,0.00023972,2]
[372508239,1752663220637,-1607.81,0.00023972,2]
[372508240,1752663220647,-15488.42990666,0.00023972,2]
[372508241,1752663221947,-500.0,0.00021191,7]
[372508242,1752663221957,-500.0,0.00021191,7]
[372508243,1752663221966,-500.0,0.00021191,7]
[372508244,1752663221976,-217.17,0.00021191,7]
[372508245,1752663221986,-200.323578,0.00021191,7]
[372508246,1752663222153,-299.676422,0.00021191,7]
[372508247,1752663222163,-938.84946289,0.00021793,2]
[372508248,1752663222173,-151.0,0.00021917,2]
[372508249,1752663222184,-151.0,0.00021917,2]
[372508250,1752663222193,-151.0,0.00021917,2]
[372508251,1752663222202,-593.45,0.00021917,2]
[372508252,1752663222212,-2896.4,0.00021917,2]
[372508253,1752663222222,-326.65960963,0.00021917,2]
[372508254,1752663222234,-460.0,0.00021917,2]
[372508255,1752663222244,-151.0,0.00021917,2]
[372508256,1752663222254,-12602.55,0.00021917,2]
[372508257,1752663222263,-460.0,0.00021917,2]
[372508258,1752663222274,-151.0,0.00021917,2]
[372508259,1752663222283,-460.0,0.00021917,2]
[372508260,1752663222293,-460.0,0.00021917,2]
[372508261,1752663222303,-593.2142998,0.00021917,2]
[372508262,1752663222313,-5499.12,0.00021917,2]
[372508263,1752663222324,-151.0,0.00022048,7]
[372508264,1752663222334,-460.0,0.00022054,2]
[372508265,1752663222344,-593.45,0.00022054,2]
[372508266,1752663222353,-2896.4,0.00022054,2]
[372508267,1752663222362,-12602.55,0.00022054,2]
[372508268,1752663222372,-460.0,0.00022054,2]
[372508269,1752663222382,-460.0,0.00022054,2]
[372508270,1752663222392,-460.0,0.00022054,2]
[372508271,1752663222401,-5499.12,0.00022054,2]
[372508272,1752663222411,-500.247932,0.000221,2]
[372508273,1752663222421,-930.83,0.00022191,2]
[372508274,1752663222430,-460.0,0.00022191,2]
[372508275,1752663222439,-593.45,0.00022191,2]
[372508276,1752663222449,-2896.4,0.00022191,2]
[372508277,1752663222458,-12602.55,0.00022191,2]
[372508278,1752663222468,-460.0,0.00022191,2]
[372508279,1752663222479,-460.0,0.00022191,2]
[372508280,1752663222488,-460.0,0.00022191,2]
[372508281,1752663222498,-1157.09,0.00022328,2]
[372508282,1752663222508,-930.83,0.00022328,2]
[372508283,1752663222517,-460.0,0.00022328,2]
[372508284,1752663222527,-593.45,0.00022328,2]
[372508285,1752663222536,-2896.4,0.00022328,2]
[372508286,1752663222546,-460.0,0.00022328,2]
[372508287,1752663222556,-12602.55,0.00022328,2]
[372508288,1752663222566,-460.0,0.00022328,2]
[372508289,1752663222576,-543.38246546,0.00022328,2]
[372508290,1752663222586,-1157.09,0.00022465,2]
[372508291,1752663222595,-460.0,0.00022465,2]
[372508292,1752663222605,-593.45,0.00022465,2]
[372508293,1752663222615,-2896.4,0.00022465,2]
[372508294,1752663222625,-460.0,0.00022465,2]
[372508295,1752663222635,-930.83,0.00022465,2]
[372508296,1752663222644,-12602.55,0.00022465,2]
[372508297,1752663222654,-1995.47,0.00022602,2]
[372508298,1752663222664,-1157.09,0.00022602,2]
[372508299,1752663222673,-460.0,0.00022602,2]
[372508300,1752663222683,-460.0,0.00022602,2]
[372508301,1752663222693,-2896.4,0.00022602,2]
[372508302,1752663222703,-593.45,0.00022602,2]
[372508303,1752663222713,-460.0,0.00022602,2]
[372508304,1752663222723,-1995.47,0.00022739,2]
[372508305,1752663222732,-1157.09,0.00022739,2]
[372508306,1752663222742,-460.0,0.00022739,2]
[372508307,1752663222751,-460.0,0.00022739,2]
[372508308,1752663222761,-2896.4,0.00022739,2]
[372508309,1752663222770,-593.45,0.00022739,2]
[372508310,1752663222780,-1995.47,0.00022876,2]
[372508311,1752663222789,-1157.09,0.00022876,2]
[372508312,1752663222799,-460.0,0.00022876,2]
[372508313,1752663222809,-460.0,0.00022876,2]
[372508314,1752663222818,-2896.4,0.00022876,2]
[372508315,1752663222828,-1995.47,0.00023013,2]
[372508316,1752663222838,-1157.09,0.00023013,2]
[372508317,1752663222847,-460.0,0.00023013,2]
[372508318,1752663222858,-1995.47,0.0002315,2]
[372508319,1752663222868,-1157.09,0.0002315,2]
[372508320,1752663222877,-460.0,0.0002315,2]
[372508321,1752663222887,-1995.47,0.00023287,2]
[372508322,1752663222897,-1157.09,0.00023287,2]
[372508323,1752663222907,-460.0,0.00023287,2]
[372508324,1752663222917,-1572.04,0.00023424,2]
[372508325,1752663222928,-2857.59,0.00023424,2]
[372508326,1752663222938,-1995.47,0.00023424,2]
[372508327,1752663222948,-1157.09,0.00023424,2]
[372508328,1752663222958,-460.0,0.00023424,2]
[372508329,1752663222968,-1572.04,0.00023561,2]
[372508330,1752663222978,-2857.59,0.00023561,2]
[372508331,1752663222988,-1995.47,0.00023561,2]
[372508332,1752663222998,-1157.09,0.00023561,2]
[372508333,1752663223008,-1572.04,0.00023698,2]
[372508334,1752663223018,-2857.59,0.00023698,2]
[372508335,1752663223028,-1995.47,0.00023698,2]
[372508336,1752663223037,-1157.09,0.00023698,2]
[372508337,1752663223048,-1572.04,0.00023835,2]
[372508338,1752663223057,-2857.59,0.00023835,2]
[372508339,1752663223067,-1995.47,0.00023835,2]
[372508340,1752663223076,-1157.09,0.00023835,2]
[372508341,1752663223086,-119787.29009334,0.00023972,2]
[372508342,1752663223095,-3360.53,0.00023972,2]
[372508343,1752663223105,-469.05,0.00023972,2]
[372508344,1752663223114,-878.69,0.00023972,2]
[372508345,1752663223123,-1218.65,0.00023972,2]
[372508346,1752663223132,-7249.88,0.00023972,2]
[372508347,1752663223141,-10952.53,0.00023972,2]
[372508348,1752663223150,-908.48,0.00023972,2]
[372508349,1752663223160,-2188.41,0.00023972,2]
[372508350,1752663223169,-1585.43,0.00023972,2]
[372508351,1752663223178,-460.0,0.00023972,2]
[372508352,1752663223187,-6933.38,0.00023972,2]
[372508353,1752663223196,-460.0,0.00023972,2]
[372508354,1752663223206,-6833.92,0.00023972,2]
[372508355,1752663223215,-7163.36,0.00023972,2]
[372508356,1752663223225,-454.26,0.00023972,2]
[372508357,1752663223237,-13647.01,0.00023972,2]
[372508358,1752663223247,-5595.33,0.00023972,2]
[372508359,1752663223256,-2582.73,0.00023972,2]
[372508360,1752663223266,-8217.22,0.00023972,2]
[372508361,1752663223276,-4826.81,0.00023972,2]
[372508362,1752663223286,-1673.31,0.00023972,2]
[372508363,1752663223295,-1251.22,0.00023972,2]
[372508364,1752663223305,-6145.91,0.00023972,2]
[372508365,1752663223316,-1655.82,0.00023972,2]
[372508366,1752663223326,-743.27,0.00023972,2]
[372508367,1752663223336,-3760.87,0.00023972,2]
[372508368,1752663223345,-589.02,0.00023972,2]
[372508369,1752663223355,-4288.94,0.00023972,2]
[372508370,1752663223365,-1267.17,0.00023972,2]
[372508371,1752663223374,-13788.05,0.00023972,2]
[372508372,1752663223384,-1974.88,0.00023972,2]
[372508373,1752663223393,-460.0,0.00023972,2]
[372508374,1752663223403,-7127.48,0.00023972,2]
[372508375,1752663223412,-5381.58,0.00023972,2]
[372508376,1752663223421,-464.21,0.00023972,2]
[372508377,1752663223556,-1745.67,0.00023972,2]
[372508378,1752663223566,-2017.87,0.00023972,2]
[372508379,1752663223576,-6507.01,0.00023972,2]
[372508380,1752663223585,-1882.82,0.00023972,2]
[372508381,1752663223595,-2383.17,0.00023972,2]
[372508382,1752663223605,-460.0,0.00023972,2]
[372508383,1752663223614,-7346.25,0.00023972,2]
[372508384,1752663223624,-460.0,0.00023972,2]
[372508385,1752663223633,-16919.72,0.00023972,2]
[372508386,1752663223642,-460.0,0.00023972,2]
[372508387,1752663223651,-480.26,0.00023972,2]
[372508388,1752663223660,-3978.63,0.00023972,2]
[372508389,1752663223669,-925.97,0.00023972,2]
[372508390,1752663223678,-1542.47,0.00023972,2]
[372508391,1752663223689,-1020.48,0.00023972,2]
[372508392,1752663223698,-612.19,0.00023972,2]
[372508393,1752663223708,-1531.25,0.00023972,2]
[372508394,1752663223719,-4266.26,0.00023972,2]
[372508395,1752663223728,-2510.73,0.00023972,2]
[372508396,1752663223737,-10810.3,0.00023972,2]
[372508397,1752663223746,-460.0,0.00023972,2]
[372508398,1752663223756,-1572.04,0.00023972,2]
[372508399,1752663223766,-2857.59,0.00023972,2]
[372508400,1752663223775,-1995.47,0.00023972,2]
[372508401,1752663223784,-12500.0,0.00023991,7]
[372508402,1752663223793,-78733.99971488,0.00023995,2]
[372508403,1752663223867,-115.70980683,0.00023995,2]
[372508404,1752663224602,-500.0,0.00021191,7]
[372508405,1752663224612,-500.0,0.00021191,7]
[372508406,1752663224622,-500.0,0.00021191,7]
[372508407,1752663224632,-938.84946289,0.0002182,2]
[372508408,1752663224641,-1304.24,0.00021917,2]
[372508409,1752663224650,-151.0,0.00021917,2]
[372508410,1752663224659,-460.0,0.00021917,2]
[372508411,1752663224669,-500.0,0.00021917,2]
[372508412,1752663224678,-151.0,0.00021917,2]
[372508413,1752663224687,-3429.58,0.00021917,2]
[372508414,1752663224696,-500.0,0.00021917,2]
[372508415,1752663224705,-151.0,0.00021917,2]
[372508416,1752663224715,-500.0,0.00021917,2]
[372508417,1752663224725,-460.0,0.00021917,2]
[372508418,1752663224734,-500.0,0.00021917,2]
[372508419,1752663224743,-151.0,0.00021917,2]
[372508420,1752663224752,-500.0,0.00021917,2]
[372508421,1752663224761,-151.0,0.00022054,7]
[372508422,1752663224771,-1304.24,0.00022054,2]
[372508423,1752663224781,-151.0,0.00022054,7]
[372508424,1752663224790,-540.0,0.00022054,2]
[372508425,1752663224800,-3429.58,0.00022054,2]
[372508426,1752663224809,-540.0,0.00022054,2]
[372508427,1752663224818,-5499.12,0.00022191,2]
[372508428,1752663224828,-3429.58,0.00022191,2]
[372508429,1752663224837,-5499.12,0.00022328,2]
[372508430,1752663224846,-3429.58,0.00022328,2]
[372508431,1752663224855,-460.0,0.00022465,2]
[372508432,1752663224865,-5499.12,0.00022465,2]
[372508433,1752663224874,-930.83,0.00022602,2]
[372508434,1752663224883,-12602.55,0.00022602,2]
[372508435,1752663224893,-460.0,0.00022602,2]
[372508436,1752663224903,-5499.12,0.00022602,2]
[372508437,1752663224912,-460.0,0.00022739,2]
[372508438,1752663224921,-930.83,0.00022739,2]
[372508439,1752663224931,-12602.55,0.00022739,2]
[372508440,1752663224940,-460.0,0.00022739,2]
[372508441,1752663224950,-5499.12,0.00022739,2]
[372508442,1752663224959,-593.45,0.00022876,2]
[372508443,1752663224968,-460.0,0.00022876,2]
[372508444,1752663224977,-930.83,0.00022876,2]
[372508445,1752663224988,-12602.55,0.00022876,2]
[372508446,1752663224997,-460.0,0.00022876,2]
[372508447,1752663225007,-5499.12,0.00022876,2]
[372508448,1752663225017,-2896.4,0.00023013,2]
[372508449,1752663225026,-593.45,0.00023013,2]
[372508450,1752663225036,-460.0,0.00023013,2]
[372508451,1752663225045,-12602.55,0.00023013,2]
[372508452,1752663225055,-930.83,0.00023013,2]
[372508453,1752663225065,-460.0,0.00023013,2]
[372508454,1752663225074,-5499.12,0.00023013,2]
[372508455,1752663225084,-2896.4,0.0002315,2]
[372508456,1752663225093,-3.29053677,0.0002315,2]
[372508457,1752663245880,500.0,0.00028767,120]
[372508458,1752663245993,500.0,0.00028767,120]
[372508459,1752663266503,258.84364231,0.0003013,120]
[372508461,1752663289823,158.54,0.00013699,2]
[372508462,1752663292573,173.43,0.00027538,120]
[372508463,1752663373922,1000.0,0.00030136,120]
[372508657,1752664139112,599.0,0.0003013,120]
[372508664,1752664170135,-4963.82292917,0.00017864,2]
[372508676,1752664231745,-305.30730487,0.00017864,2]
[372508678,1752664231759,-297.13539493,0.00017864,2]
[372508679,1752664231850,-2333.2103072,0.00017864,2]
[372508680,1752664231860,-152.76896607,0.00017899,2]
[372508681,1752664231870,-300.0,0.00017954,2]
[372508682,1752664231880,-1000.0,0.00017954,2]
[372508683,1752664231890,-250.0,0.00017954,2]
[372508684,1752664231899,-300.0,0.00017976,2]
[372508685,1752664231909,-1200.0,0.00017998,2]
[372508686,1752664231919,-1200.0,0.00017999,2]
[372508687,1752664231929,-550.0,0.00017999,2]
[372508688,1752664231938,-300.0,0.00017999,2]
[372508689,1752664231948,-372.0,0.00018,2]
[372508690,1752664231958,-211.5471049,0.00018,2]
[372508691,1752664231968,-15891.50383966,0.00018,2]
[372508692,1752664231977,-300.0,0.00018116,2]
[372508693,1752664231987,-1000.0,0.00018116,2]
[372508694,1752664231996,-1400.0,0.00018515,2]
[372508695,1752664232006,-1281.11735214,0.00018515,2]
[372508696,1752664232016,-211.5471049,0.00018515,2]
[372508697,1752664232025,-152.76896606,0.00019008,2]
[372508698,1752664232035,-150.0,0.00019079,2]
[372508699,1752664232044,-173.45,0.00019178,2]
[372508700,1752664232057,-250.0,0.00019569,2]
[372508701,1752664232066,-743.73,0.00019605,2]
[372508702,1752664232076,-1400.0,0.00019611,2]
[372508703,1752664232089,-381.0,0.00019639,2]
[372508704,1752664232104,-300.0,0.00019699,2]
[372508705,1752664232119,-1000.0,0.00019699,2]
[372508706,1752664232129,-250.0,0.00019699,2]
[372508707,1752664232139,-152.99,0.00019702,2]
[372508708,1752664232149,-1000.0,0.00019723,2]
[372508709,1752664232159,-1680.0,0.00019734,2]
[372508711,1752664232168,-152.99,0.00019735,2]
[372508712,1752664232178,-150.0,0.00019745,2]
[372508713,1752664232188,-300.0,0.00019749,2]
[372508714,1752664232198,-286.04,0.00019762,2]
[372508715,1752664232208,-152.99,0.00019768,2]
[372508716,1752664232218,-500.0,0.00019798,2]
[372508717,1752664232228,-152.99,0.000198,2]
[372508718,1752664232237,-152.99,0.00019833,2]
[372508719,1752664232247,-152.99,0.00019866,2]
[372508720,1752664232257,-5309.69,0.00019871,2]
[372508721,1752664232267,-793.73,0.00019878,2]
[372508722,1752664232277,-152.99,0.00019899,2]
[372508724,1752664232287,-150.0,0.00019948,4]
[372508726,1752664232296,-150.0,0.00019948,4]
[372508728,1752664232306,-150.0,0.00019948,4]
[372508731,1752664232316,-150.0,0.00019948,4]
[372508734,1752664232325,-600.0,0.00019959,2]
[372508736,1752664232335,-1000.0,0.00020048,2]
[372508738,1752664232345,-492.41724559,0.000201,2]
[372508740,1752664232355,-150.0,0.00020106,4]
[372508742,1752664232364,-152.76896606,0.00020117,2]
[372508744,1752664232374,-190.64,0.00020159,2]
[372508745,1752664232383,-500.0,0.00020159,2]
[372508746,1752664232393,-1300.0,0.00020159,2]
[372508747,1752664232402,-167.75,0.00020165,2]
[372508748,1752664232412,-150.0,0.00020194,4]
[372508749,1752664232422,-500.0,0.00020217,2]
[372508750,1752664232432,-151.0,0.00020217,2]
[372508751,1752664232442,-600.0,0.00020217,2]
[372508752,1752664232452,-600.0,0.00020217,2]
[372508753,1752664232462,-600.0,0.00020217,2]
[372508754,1752664232472,-500.0,0.00020217,2]
[372508755,1752664232482,-600.0,0.00020217,2]
[372508756,1752664232492,-500.0,0.00020217,2]
[372508757,1752664232502,-600.0,0.00020217,2]
[372508758,1752664232513,-500.0,0.00020217,2]
[372508759,1752664232523,-600.0,0.00020217,2]
[372508760,1752664232533,-500.0,0.00020217,2]
[372508761,1752664232545,-600.0,0.00020217,2]
[372508762,1752664232556,-500.0,0.00020217,2]
[372508763,1752664232566,-600.0,0.00020217,2]
[372508764,1752664232576,-500.0,0.00020217,2]
[372508765,1752664232586,-500.0,0.00020217,2]
[372508766,1752664232597,-500.0,0.00020217,2]
[372508767,1752664232607,-600.0,0.00020217,2]
[372508768,1752664232617,-151.0,0.00020217,2]
[372508769,1752664232627,-500.0,0.00020217,2]
[372508770,1752664232638,-500.0,0.00020217,2]
[372508771,1752664232649,-151.0,0.00020217,2]
[372508772,1752664232659,-600.0,0.00020217,2]
[372508773,1752664232669,-500.0,0.00020217,2]
[372508774,1752664232681,-151.0,0.00020217,2]
[372508775,1752664232691,-500.0,0.00020217,2]
[372508776,1752664232701,-600.0,0.00020217,2]
[372508777,1752664232711,-500.0,0.00020217,2]
[372508778,1752664232720,-151.0,0.00020217,2]
[372508779,1752664232730,-500.0,0.00020217,2]
[372508780,1752664232740,-600.0,0.00020217,2]
[372508781,1752664232749,-500.0,0.00020217,2]
[372508782,1752664232759,-151.0,0.00020217,2]
[372508783,1752664232769,-500.0,0.00020217,2]
[372508784,1752664232778,-600.0,0.00020217,2]
[372508785,1752664232788,-500.0,0.00020217,2]
[372508786,1752664232798,-151.0,0.00020217,2]
[372508787,1752664232808,-600.0,0.00020217,2]
[372508788,1752664232818,-500.0,0.00020217,2]
[372508789,1752664232828,-500.0,0.00020217,2]
[372508790,1752664232839,-151.0,0.00020217,2]
[372508791,1752664232849,-500.0,0.00020217,2]
[372508792,1752664232860,-600.0,0.00020217,2]
[372508793,1752664232877,-151.0,0.00020217,2]
[372508794,1752664232887,-500.0,0.00020217,2]
[372508795,1752664232898,-500.0,0.00020217,2]
[372508796,1752664232908,-600.0,0.00020217,2]
[372508797,1752664232919,-500.0,0.00020217,2]
[372508798,1752664232929,-151.0,0.00020217,2]
[372508799,1752664232941,-500.0,0.00020217,2]
[372508800,1752664232951,-400.0,0.00020217,2]
[372508801,1752664232962,-500.0,0.00020217,2]
[372508802,1752664232972,-500.0,0.00020217,2]
[372508803,1752664232982,-151.0,0.00020217,2]
[372508804,1752664232992,-500.0,0.00020217,2]
[372508805,1752664233002,-151.0,0.00020217,2]
[372508806,1752664233012,-500.0,0.00020217,2]
[372508807,1752664233022,-500.0,0.00020217,2]
[372508808,1752664233032,-500.0,0.00020217,2]
[372508809,1752664233043,-500.0,0.00020217,2]
[372508810,1752664233053,-500.0,0.00020217,2]
[372508811,1752664233064,-500.0,0.00020217,2]
[372508812,1752664233074,-500.0,0.00020217,2]
[372508813,1752664233084,-500.0,0.00020217,2]
[372508814,1752664233094,-500.0,0.00020217,2]
[372508815,1752664233105,-500.0,0.00020217,2]
[372508816,1752664233115,-500.0,0.00020217,2]
[372508817,1752664233125,-500.0,0.00020217,2]
[372508818,1752664233136,-23900.0,0.00020229,2]
[372508819,1752664233146,-150.0,0.00020265,4]
[372508820,1752664233157,-542.48,0.00020279,2]
[372508821,1752664233167,-150.0,0.00020317,4]
[372508822,1752664233178,-150.0,0.00020423,4]
[372508823,1752664233188,-150.0,0.0002044,4]
[372508824,1752664233198,-286.04,0.00020503,2]
[372508825,1752664233209,-168.33,0.00020531,2]
[372508826,1752664233219,-8526.54,0.00020537,2]
[372508827,1752664233229,-2293.24,0.00020577,2]
[372508828,1752664233240,-150.0,0.00020581,4]
[372508829,1752664233251,-725.98,0.00020642,2]
[372508830,1752664233262,-173.43,0.00020654,2]
[372508831,1752664233272,-150.0,0.00020687,4]
[372508832,1752664233283,-150.0,0.00020687,4]
[372508833,1752664233294,-1400.0,0.00020707,2]
[372508834,1752664233304,-150.0,0.0002074,4]
[372508835,1752664233314,-150.0,0.00020898,4]
[372508836,1752664233325,-150.0,0.00020933,4]
[372508837,1752664233335,-187.5,0.00020974,2]
[372508838,1752664233346,-542.0,0.00021,2]
[372508839,1752664233356,-7085.8417955,0.00021,2]
[372508840,1752664233366,-214.49076557,0.00021018,2]
[372508841,1752664233377,-150.0,0.00021056,4]
[372508842,1752664233387,-150.0,0.00021056,4]
[372508843,1752664233397,-160.0,0.00021167,2]
[372508844,1752664233409,-300.0,0.00021167,2]
[372508845,1752664233419,-300.0,0.00021167,2]
[372508846,1752664233430,-300.0,0.00021167,2]
[372508847,1752664233440,-400.0,0.00021167,2]
[372508848,1752664233450,-260.68858864,0.00021167,2]
[372508849,1752664233461,-207.4,0.00021167,2]
[372508850,1752664233471,-4031.856,0.00021167,2]
[372508851,1752664233481,-500.0,0.00021167,2]
[372508852,1752664233491,-500.0,0.00021167,2]
[372508853,1752664233502,-151.0,0.00021167,2]
[372508854,1752664233513,-500.0,0.00021167,2]
[372508855,1752664233523,-500.0,0.00021167,2]
[372508856,1752664233533,-500.0,0.00021167,2]
[372508857,1752664233543,-500.0,0.00021167,2]
[372508858,1752664233554,-500.0,0.00021167,2]
[372508859,1752664233568,-500.0,0.00021167,2]
[372508860,1752664233578,-500.0,0.00021167,2]
[372508861,1752664233588,-500.0,0.00021167,2]
[372508862,1752664233599,-500.0,0.00021167,2]
[372508863,1752664233609,-151.0,0.00021167,2]
[372508864,1752664233619,-606.34122927,0.00021167,2]
[372508865,1752664233629,-151.0,0.00021167,2]
[372508866,1752664233639,-151.0,0.00021167,2]
[372508867,1752664233649,-151.0,0.00021167,2]
[372508868,1752664233659,-151.0,0.00021167,2]
[372508869,1752664234062,-151.0,0.00021167,2]
[372508870,1752664234109,-151.0,0.00021167,2]
[372508871,1752664234121,-273.30503954,0.00021167,2]
[372508872,1752664234131,-150.0,0.00021179,4]
[372508873,1752664234141,-500.0,0.00021191,7]
[372508874,1752664234151,-500.0,0.00021191,7]
[372508875,1752664234161,-500.0,0.00021191,7]
[372508876,1752664234173,-500.0,0.00021191,7]
[372508877,1752664234183,-500.0,0.00021191,7]
[372508878,1752664234194,-500.0,0.00021191,7]
[372508879,1752664234204,-500.0,0.00021191,7]
[372508880,1752664234215,-500.0,0.00021191,7]
[372508881,1752664234225,-500.0,0.00021191,7]
[372508882,1752664234236,-276.56,0.00021191,7]
[372508883,1752664234246,-150.0,0.00021214,4]
[372508884,1752664234256,-4181.034672,0.00021222,2]
[372508885,1752664234267,-286.04,0.00021244,2]
[372508886,1752664234278,-500.0,0.00021255,2]
[372508887,1752664234288,-1300.0,0.00021255,2]
[372508888,1752664234298,-3569.39836586,0.00021273,2]
[372508889,1752664234308,-4335.73295486,0.00021277,2]
[372508890,1752664234318,-542.48,0.00021293,2]
[372508891,1752664234328,-4496.15507419,0.00021332,2]
[372508892,1752664234338,-150.0,0.00021373,4]
[372508893,1752664234348,-4662.51281194,0.00021387,2]
[372508894,1752664234358,-3569.39836581,0.0002141,2]
[372508895,1752664234367,-150.0,0.00021426,4]
[372508896,1752664234378,-150.0,0.00021426,4]
[372508897,1752664234388,-4835.02578598,0.00021442,2]
[372508898,1752664234398,-5013.92174006,0.00021497,2]
[372508899,1752664234408,-150.0,0.00021531,4]
[372508900,1752664234418,-3569.39836581,0.00021546,2]
[372508901,1752664234428,-5199.43684444,0.00021552,2]
[372508902,1752664234439,-469.42473149,0.00021558,2]
[372508903,1752664234449,-520.0,0.00021561,2]
[372508904,1752664234459,-168.0,0.00021573,2]
[372508905,1752664234469,-5391.81600769,0.00021607,2]
[372508906,1752664234478,-500.0,0.00021628,2]
[372508907,1752664234488,-502.22595945,0.00021628,2]
[372508908,1752664234498,-85414.09,0.00021631,2]
[372508909,1752664234508,-168.0,0.00021658,2]
[372508910,1752664234518,-5591.31319997,0.00021662,2]
[372508911,1752664234527,-469.42473144,0.00021663,2]
[372508912,1752664234537,-150.0,0.00021672,4]
[372508913,1752664234548,-3569.39836581,0.00021683,2]
[372508914,1752664234562,-150.0,0.00021689,4]
[372508915,1752664234571,-5929.71306778,0.00021717,2]
[372508916,1752664234581,-469.42473144,0.00021768,2]
[372508917,1752664234591,-150.0,0.00021795,4]
[372508918,1752664234603,-1400.0,0.00021803,2]
[372508919,1752664234612,-861.0,0.00021811,2]
[372508920,1752664234622,-3938.0,0.00021811,2]
[372508921,1752664234634,-1922.6277,0.00021817,2]
[372508922,1752664234643,-184.29826255,0.00021817,2]
[372508923,1752664234653,-260.70516095,0.00021817,2]
[372508924,1752664234663,-3569.39836581,0.00021819,2]
[372508925,1752664234673,-150.0,0.00021848,4]
[372508926,1752664234682,-469.42473144,0.00021873,2]
[372508927,1752664234692,-2000.0,0.000219,2]
[372508928,1752664234702,-1575.66,0.000219,2]
[372508929,1752664234711,-540.09598391,0.00021915,2]
[372508930,1752664234721,-195.79559197,0.00021917,2]
[372508931,1752664234731,-525.90682731,0.00021917,2]
[372508932,1752664234740,-522.83350123,0.00021917,2]
[372508933,1752664234750,-460.0,0.00021917,2]
[372508934,1752664234760,-463.25725605,0.00021917,2]
[372508935,1752664234771,-151.0,0.00021917,2]
[372508936,1752664234780,-460.0,0.00021917,2]
[372508937,1752664234790,-151.0,0.00021917,2]
[372508938,1752664234800,-151.0,0.00021917,2]
[372508939,1752664234810,-151.0,0.00021917,2]
[372508940,1752664234820,-151.0,0.00021917,2]
[372508941,1752664234829,-151.0,0.00021917,2]
[372508942,1752664234839,-151.0,0.00021917,2]
[372508943,1752664234849,-500.0,0.00021917,2]
[372508944,1752664234858,-460.0,0.00021917,2]
[372508945,1752664234867,-500.0,0.00021917,2]
[372508946,1752664234877,-460.0,0.00021917,2]
[372508947,1752664234887,-460.0,0.00021917,2]
[372508948,1752664234897,-460.0,0.00021917,2]
[372508949,1752664234907,-578.28,0.00021917,2]
[372508950,1752664234917,-279.11895192,0.00021917,2]
[372508951,1752664234927,-460.0,0.00021917,2]
[372508952,1752664234937,-151.0,0.00021917,2]
[372508953,1752664234947,-151.0,0.00021917,2]
[372508954,1752664234957,-151.0,0.00021917,2]
[372508955,1752664234966,-500.0,0.00021917,2]
[372508956,1752664234976,-151.0,0.00021917,2]
[372508957,1752664234986,-151.0,0.00021917,2]
[372508958,1752664234996,-460.0,0.00021917,2]
[372508959,1752664235006,-460.0,0.00021917,2]